[Event "Early-Titled-Tuesday-Blitz-March-12-2024"]
[Site "Chess.com"]
[Date "2024.03.12"]
[Round "5"]
[White "mikheeva86"]
[Black "nelsi"]
[Result "1/2-1/2"]
[WhiteElo "2197"]
[BlackElo "2428"]
[TimeControl "180+1"]
[EndTime "8:56:11 PDT"]
[Termination "Game drawn - insufficient material"]

1. e4 {[%clk 0:03:00.9]} 1... e5 {[%clk 0:01:51.1]} 2. Nf3 {[%clk 0:03:00.1]}
2... Nc6 {[%clk 0:01:50.5]} 3. Bc4 {[%clk 0:03:00.5]} 3... Nf6 {[%clk
0:01:49.1]} 4. d3 {[%clk 0:02:59.3]} 4... d5 {[%clk 0:01:46.2]} 5. exd5 {[%clk
0:02:58.8]} 5... Nxd5 {[%clk 0:01:46.6]} 6. h3 {[%clk 0:02:55.2]} 6... Bc5
{[%clk 0:01:40.1]} 7. O-O {[%clk 0:02:54.5]} 7... O-O {[%clk 0:01:39.7]} 8. Re1
{[%clk 0:02:54.5]} 8... Re8 {[%clk 0:01:32.3]} 9. Nbd2 {[%clk 0:02:48.2]} 9...
Nf6 {[%clk 0:01:26.2]} 10. a4 {[%clk 0:02:45.9]} 10... a6 {[%clk 0:01:26.3]} 11.
Nf1 {[%clk 0:02:38.2]} 11... Be6 {[%clk 0:01:23.3]} 12. Bxe6 {[%clk 0:02:35.2]}
12... Rxe6 {[%clk 0:01:22.9]} 13. Be3 {[%clk 0:02:35.8]} 13... Bxe3 {[%clk
0:01:15.1]} 14. Nxe3 {[%clk 0:02:35.5]} 14... Nd5 {[%clk 0:01:02.7]} 15. Nxd5
{[%clk 0:02:27.7]} 15... Qxd5 {[%clk 0:01:02.3]} 16. Re3 {[%clk 0:02:07.3]}
16... Rd8 {[%clk 0:00:57]} 17. Qe2 {[%clk 0:02:01]} 17... Nd4 {[%clk 0:00:50.2]}
18. Nxd4 {[%clk 0:01:59]} 18... Qxd4 {[%clk 0:00:51.1]} 19. c3 {[%clk
0:01:58.4]} 19... Qd6 {[%clk 0:00:48.6]} 20. Re1 {[%clk 0:01:57.2]} 20... f6
{[%clk 0:00:47.1]} 21. a5 {[%clk 0:01:57.4]} 21... Kf7 {[%clk 0:00:46.9]} 22.
Qh5+ {[%clk 0:01:51.1]} 22... Kg8 {[%clk 0:00:47]} 23. Rg3 {[%clk 0:01:49.4]}
23... g6 {[%clk 0:00:41.5]} 24. Qh6 {[%clk 0:01:45.3]} 24... Qf8 {[%clk
0:00:37.9]} 25. Qd2 {[%clk 0:01:21.1]} 25... Red6 {[%clk 0:00:37]} 26. Ree3
{[%clk 0:01:09.8]} 26... Qe8 {[%clk 0:00:34.4]} 27. h4 {[%clk 0:01:00.6]} 27...
Qb5 {[%clk 0:00:33.9]} 28. h5 {[%clk 0:00:47.7]} 28... g5 {[%clk 0:00:34]} 29.
b4 {[%clk 0:00:38.9]} 29... Qe8 {[%clk 0:00:30.6]} 30. Qe2 {[%clk 0:00:33.5]}
30... h6 {[%clk 0:00:29.1]} 31. Qg4 {[%clk 0:00:30.4]} 31... Qe6 {[%clk
0:00:27.8]} 32. Qxe6+ {[%clk 0:00:27.2]} 32... Rxe6 {[%clk 0:00:28.7]} 33. Rgf3
{[%clk 0:00:27.1]} 33... Kf7 {[%clk 0:00:28]} 34. g4 {[%clk 0:00:24.7]} 34...
Ke7 {[%clk 0:00:27.9]} 35. Kg2 {[%clk 0:00:21.7]} 35... Red6 {[%clk 0:00:28.5]}
36. Kg3 {[%clk 0:00:20.4]} 36... b6 {[%clk 0:00:28.7]} 37. axb6 {[%clk
0:00:19.7]} 37... cxb6 {[%clk 0:00:29.6]} 38. Kg2 {[%clk 0:00:19.2]} 38... a5
{[%clk 0:00:30.2]} 39. bxa5 {[%clk 0:00:19.3]} 39... bxa5 {[%clk 0:00:31.1]} 40.
d4 {[%clk 0:00:18.2]} 40... Re6 {[%clk 0:00:27.4]} 41. dxe5 {[%clk 0:00:18.3]}
41... Rxe5 {[%clk 0:00:28.1]} 42. Rxe5+ {[%clk 0:00:18.3]} 42... fxe5 {[%clk
0:00:29]} 43. c4 {[%clk 0:00:18.2]} 43... a4 {[%clk 0:00:28.5]} 44. Ra3 {[%clk
0:00:18.1]} 44... Ra8 {[%clk 0:00:28.5]} 45. Kf3 {[%clk 0:00:18.5]} 45... Kd6
{[%clk 0:00:29.2]} 46. Ke4 {[%clk 0:00:18.6]} 46... Kc5 {[%clk 0:00:29.9]} 47.
Kxe5 {[%clk 0:00:16]} 47... Kxc4 {[%clk 0:00:25.5]} 48. f4 {[%clk 0:00:15.8]}
48... gxf4 {[%clk 0:00:25.2]} 49. Kxf4 {[%clk 0:00:15.8]} 49... Kb4 {[%clk
0:00:25.5]} 50. Ra1 {[%clk 0:00:15.1]} 50... Kb3 {[%clk 0:00:26.2]} 51. g5
{[%clk 0:00:15]} 51... Kb2 {[%clk 0:00:26.7]} 52. Rh1 {[%clk 0:00:13.7]} 52...
hxg5+ {[%clk 0:00:26.2]} 53. Kxg5 {[%clk 0:00:13.6]} 53... a3 {[%clk 0:00:26.8]}
54. h6 {[%clk 0:00:13.8]} 54... a2 {[%clk 0:00:26.6]} 55. h7 {[%clk 0:00:12.5]}
55... a1=Q {[%clk 0:00:12.9]} 56. Rxa1 {[%clk 0:00:11.9]} 56... Kxa1 {[%clk
0:00:12.8]} 57. Kg6 {[%clk 0:00:11.6]} 57... Kb2 {[%clk 0:00:11.9]} 58. Kg7
{[%clk 0:00:11.9]} 58... Kc3 {[%clk 0:00:12.8]} 59. h8=Q {[%clk 0:00:11.2]}
59... Rxh8 {[%clk 0:00:13]} 60. Kxh8 {[%clk 0:00:11.3]} 1/2-1/2

[Event "Early-Titled-Tuesday-Blitz-March-12-2024"]
[Site "Chess.com"]
[Date "2024.03.12"]
[Round "5"]
[White "PLAYER_2006_M"]
[Black "Blitzstream"]
[Result "1-0"]
[WhiteElo "2992"]
[BlackElo "2804"]
[TimeControl "180+1"]
[EndTime "8:56:12 PDT"]
[Termination "PLAYER_2006_M won on time"]

1. e4 {[%clk 0:03:00.9]} 1... d5 {[%clk 0:02:59]} 2. exd5 {[%clk 0:02:59.2]}
2... Qxd5 {[%clk 0:02:59.3]} 3. Nc3 {[%clk 0:02:59.6]} 3... Qa5 {[%clk
0:02:59.2]} 4. d4 {[%clk 0:03:00]} 4... Nf6 {[%clk 0:02:59.3]} 5. Nf3 {[%clk
0:03:00.2]} 5... c6 {[%clk 0:02:59.2]} 6. Ne5 {[%clk 0:02:57.9]} 6... Be6 {[%clk
0:02:58.4]} 7. Nc4 {[%clk 0:02:51]} 7... Bxc4 {[%clk 0:02:52.2]} 8. Bxc4 {[%clk
0:02:51.7]} 8... e6 {[%clk 0:02:52.7]} 9. O-O {[%clk 0:02:52]} 9... Bd6 {[%clk
0:02:52.8]} 10. Qe2 {[%clk 0:02:50.4]} 10... O-O {[%clk 0:02:48]} 11. Ne4 {[%clk
0:02:49.7]} 11... Nxe4 {[%clk 0:02:44.6]} 12. Qxe4 {[%clk 0:02:50.6]} 12... Nd7
{[%clk 0:02:44.5]} 13. c3 {[%clk 0:02:49.5]} 13... Rfe8 {[%clk 0:02:35]} 14. Qf3
{[%clk 0:02:46]} 14... Nf6 {[%clk 0:02:27.3]} 15. g3 {[%clk 0:02:43.5]} 15...
Qf5 {[%clk 0:02:26.1]} 16. Qxf5 {[%clk 0:02:40.6]} 16... exf5 {[%clk 0:02:27]}
17. Kg2 {[%clk 0:02:40.6]} 17... g6 {[%clk 0:02:24.4]} 18. Be3 {[%clk
0:02:33.6]} 18... Kg7 {[%clk 0:02:23.5]} 19. Rae1 {[%clk 0:02:32.5]} 19... a5
{[%clk 0:02:20.1]} 20. a4 {[%clk 0:02:27.5]} 20... Re7 {[%clk 0:02:11.3]} 21.
Bc1 {[%clk 0:02:24.8]} 21... Rae8 {[%clk 0:02:10.5]} 22. Rxe7 {[%clk 0:02:24.8]}
22... Rxe7 {[%clk 0:02:11.4]} 23. f3 {[%clk 0:02:19.8]} 23... h6 {[%clk
0:02:05.7]} 24. Kf2 {[%clk 0:02:18.9]} 24... f4 {[%clk 0:01:57.7]} 25. g4 {[%clk
0:02:15]} 25... g5 {[%clk 0:01:52.6]} 26. Re1 {[%clk 0:02:09.8]} 26... Rxe1
{[%clk 0:01:43.5]} 27. Kxe1 {[%clk 0:02:10.7]} 27... Nd5 {[%clk 0:01:43.8]} 28.
Ke2 {[%clk 0:02:03]} 28... f5 {[%clk 0:01:36.3]} 29. gxf5 {[%clk 0:01:57.9]}
29... Kf6 {[%clk 0:01:35.5]} 30. Bd3 {[%clk 0:01:54.7]} 30... Ne3 {[%clk
0:01:28]} 31. Be4 {[%clk 0:01:45.4]} 31... Nxf5 {[%clk 0:01:21]} 32. Bd2 {[%clk
0:01:45.5]} 32... Ne3 {[%clk 0:01:17]} 33. b4 {[%clk 0:01:41.6]} 33... Nc4
{[%clk 0:01:11]} 34. Be1 {[%clk 0:01:38.4]} 34... Bc7 {[%clk 0:00:36.8]} 35. d5
{[%clk 0:01:28.4]} 35... cxd5 {[%clk 0:00:25.6]} 36. Bxd5 {[%clk 0:01:29.3]}
36... Nd6 {[%clk 0:00:25.9]} 37. c4 {[%clk 0:01:25.5]} 37... axb4 {[%clk
0:00:24]} 38. c5 {[%clk 0:01:24.5]} 38... Nf5 {[%clk 0:00:22.5]} 39. Bxb4 {[%clk
0:01:16.7]} 39... b6 {[%clk 0:00:22.7]} 40. cxb6 {[%clk 0:01:14.8]} 40... Bxb6
{[%clk 0:00:22.8]} 41. a5 {[%clk 0:01:15.5]} 41... Ba7 {[%clk 0:00:23.2]} 42. a6
{[%clk 0:01:13.5]} 42... Nd4+ {[%clk 0:00:22.7]} 43. Kd3 {[%clk 0:01:13.1]}
43... Ke5 {[%clk 0:00:16.9]} 44. Bb7 {[%clk 0:01:11.7]} 44... Ne6 {[%clk
0:00:17]} 45. h3 {[%clk 0:01:07.7]} 45... h5 {[%clk 0:00:15.1]} 46. Bc3+ {[%clk
0:01:06.1]} 46... Kd6 {[%clk 0:00:15.6]} 47. Bf6 {[%clk 0:01:04.9]} 47... Nc5+
{[%clk 0:00:14.1]} 48. Kc4 {[%clk 0:01:02.9]} 48... Ne6 {[%clk 0:00:12.5]} 49.
Bd5 {[%clk 0:00:59.2]} 49... Nc7 {[%clk 0:00:11.1]} 50. Bb7 {[%clk 0:00:57]}
50... Ne6 {[%clk 0:00:11.5]} 51. Bc8 {[%clk 0:00:57.1]} 51... g4 {[%clk
0:00:10.4]} 52. hxg4 {[%clk 0:00:55.8]} 52... hxg4 {[%clk 0:00:11.3]} 53. fxg4
{[%clk 0:00:52]} 53... f3 {[%clk 0:00:11.4]} 54. Bb7 {[%clk 0:00:42.5]} 54... f2
{[%clk 0:00:10.9]} 55. Bg2 {[%clk 0:00:43]} 55... Nc7 {[%clk 0:00:09.2]} 56. g5
{[%clk 0:00:34.7]} 56... Ke6 {[%clk 0:00:09.5]} 57. Bd8 {[%clk 0:00:22.9]} 57...
Nxa6 {[%clk 0:00:09.6]} 58. g6 {[%clk 0:00:23.5]} 58... Nb8 {[%clk 0:00:05]} 59.
Bh3+ {[%clk 0:00:23.4]} 59... Kd6 {[%clk 0:00:01]} 60. g7 {[%clk 0:00:24]} 1-0

[Event "Early-Titled-Tuesday-Blitz-March-12-2024"]
[Site "Chess.com"]
[Date "2024.03.12"]
[Round "5"]
[White "MidnightFox"]
[Black "Iskusnyh"]
[Result "1-0"]
[WhiteElo "2511"]
[BlackElo "2662"]
[TimeControl "180+1"]
[EndTime "8:56:20 PDT"]
[Termination "MidnightFox won on time"]

1. d4 {[%clk 0:02:59.8]} 1... d5 {[%clk 0:02:59.3]} 2. c4 {[%clk 0:02:58.6]}
2... c6 {[%clk 0:02:57.7]} 3. Nf3 {[%clk 0:02:58.9]} 3... Nf6 {[%clk 0:02:57.2]}
4. Nc3 {[%clk 0:02:59.3]} 4... a6 {[%clk 0:02:54.7]} 5. e3 {[%clk 0:02:51.2]}
5... e6 {[%clk 0:02:53.4]} 6. Bd3 {[%clk 0:02:48.6]} 6... dxc4 {[%clk
0:02:51.2]} 7. Bxc4 {[%clk 0:02:49.5]} 7... b5 {[%clk 0:02:50.3]} 8. Bd3 {[%clk
0:02:48.4]} 8... c5 {[%clk 0:02:49.7]} 9. O-O {[%clk 0:02:41.1]} 9... Nbd7
{[%clk 0:02:49.4]} 10. Qe2 {[%clk 0:02:40.7]} 10... Bb7 {[%clk 0:02:46.7]} 11.
Rd1 {[%clk 0:02:40.4]} 11... Qc7 {[%clk 0:02:42.9]} 12. Bd2 {[%clk 0:02:31.4]}
12... c4 {[%clk 0:02:35.1]} 13. Bc2 {[%clk 0:02:29.2]} 13... Bd6 {[%clk
0:02:34.9]} 14. e4 {[%clk 0:02:25.1]} 14... e5 {[%clk 0:02:34.6]} 15. Be3 {[%clk
0:02:07.7]} 15... O-O {[%clk 0:02:29.7]} 16. Rd2 {[%clk 0:01:53]} 16... Rfe8
{[%clk 0:02:24]} 17. Rad1 {[%clk 0:01:47.7]} 17... Bb4 {[%clk 0:02:18.7]} 18.
dxe5 {[%clk 0:01:43.8]} 18... Nxe5 {[%clk 0:02:17.6]} 19. Bf4 {[%clk 0:01:40.8]}
19... Nxf3+ {[%clk 0:02:13.3]} 20. Qxf3 {[%clk 0:01:41.7]} 20... Qc6 {[%clk
0:02:08.2]} 21. Rd6 {[%clk 0:01:35.5]} 21... Bxc3 {[%clk 0:01:50.7]} 22. Rxc6
{[%clk 0:01:33.1]} 22... Bxc6 {[%clk 0:01:48.7]} 23. bxc3 {[%clk 0:01:31]} 23...
Nxe4 {[%clk 0:01:47.8]} 24. Bxe4 {[%clk 0:01:20.8]} 24... Bxe4 {[%clk
0:01:47.2]} 25. Qg3 {[%clk 0:01:19.3]} 25... Re6 {[%clk 0:01:45.2]} 26. Bb8
{[%clk 0:01:03.8]} 26... h6 {[%clk 0:01:37]} 27. Qf4 {[%clk 0:00:53.3]} 27...
Bd3 {[%clk 0:01:31.9]} 28. h4 {[%clk 0:00:47.8]} 28... a5 {[%clk 0:01:31.2]} 29.
Qc7 {[%clk 0:00:42.2]} 29... b4 {[%clk 0:01:27.8]} 30. Qb7 {[%clk 0:00:30.5]}
30... Raa6 {[%clk 0:01:03.8]} 31. cxb4 {[%clk 0:00:27.4]} 31... axb4 {[%clk
0:01:03.5]} 32. Bf4 {[%clk 0:00:19.8]} 32... Rab6 {[%clk 0:00:59.1]} 33. Qc8+
{[%clk 0:00:18.1]} 33... Kh7 {[%clk 0:00:57.7]} 34. Qf8 {[%clk 0:00:17.4]} 34...
Rf6 {[%clk 0:00:51.6]} 35. Be3 {[%clk 0:00:17]} 35... Rb7 {[%clk 0:00:42.1]} 36.
h5 {[%clk 0:00:16.9]} 36... Re6 {[%clk 0:00:27.4]} 37. Bd4 {[%clk 0:00:16.9]}
37... f6 {[%clk 0:00:26.5]} 38. Qc8 {[%clk 0:00:15.9]} 38... Rbe7 {[%clk
0:00:24.3]} 39. Bc5 {[%clk 0:00:13]} 39... Re8 {[%clk 0:00:21.4]} 40. Qc7 {[%clk
0:00:12.7]} 40... Be2 {[%clk 0:00:20.7]} 41. Re1 {[%clk 0:00:11.3]} 41... Bxh5
{[%clk 0:00:19.1]} 42. Rxe6 {[%clk 0:00:10.3]} 42... Rxe6 {[%clk 0:00:19.9]} 43.
Bf8 {[%clk 0:00:08.8]} 43... Kg6 {[%clk 0:00:18.4]} 44. Qxg7+ {[%clk 0:00:08.2]}
44... Kf5 {[%clk 0:00:19.3]} 45. f3 {[%clk 0:00:06.6]} 45... Kf4 {[%clk
0:00:16.4]} 46. Qc7+ {[%clk 0:00:05.8]} 46... Ke3 {[%clk 0:00:13.3]} 47. Qxc4
{[%clk 0:00:06]} 47... Bf7 {[%clk 0:00:10.9]} 48. Bc5+ {[%clk 0:00:06.5]} 48...
Kd2 {[%clk 0:00:09.1]} 49. Qxb4+ {[%clk 0:00:06.6]} 49... Kd3 {[%clk 0:00:08.7]}
50. Qb7 {[%clk 0:00:07.1]} 50... Bg8 {[%clk 0:00:03.7]} 51. Qd7+ {[%clk
0:00:07.3]} 51... Kc4 {[%clk 0:00:02.5]} 52. Bf2 {[%clk 0:00:06.5]} 1-0

[Event "Early-Titled-Tuesday-Blitz-March-12-2024"]
[Site "Chess.com"]
[Date "2024.03.12"]
[Round "5"]
[White "agvega14"]
[Black "IndianSchoolOfSuffering"]
[Result "0-1"]
[WhiteElo "2205"]
[BlackElo "2400"]
[TimeControl "180+1"]
[EndTime "8:56:20 PDT"]
[Termination "IndianSchoolOfSuffering won on time"]

1. e4 {[%clk 0:02:58.6]} 1... e5 {[%clk 0:02:55.2]} 2. Nf3 {[%clk 0:02:56.3]}
2... Nc6 {[%clk 0:02:55.7]} 3. Bb5 {[%clk 0:02:55.7]} 3... a6 {[%clk 0:02:54.1]}
4. Bxc6 {[%clk 0:02:55.7]} 4... dxc6 {[%clk 0:02:53.7]} 5. O-O {[%clk
0:02:56.6]} 5... f6 {[%clk 0:02:53.3]} 6. d4 {[%clk 0:02:55.6]} 6... exd4 {[%clk
0:02:53.8]} 7. Nxd4 {[%clk 0:02:54.1]} 7... c5 {[%clk 0:02:53.6]} 8. Nb3 {[%clk
0:02:54.3]} 8... Qxd1 {[%clk 0:02:53.5]} 9. Rxd1 {[%clk 0:02:54.1]} 9... Be6
{[%clk 0:02:52.3]} 10. Be3 {[%clk 0:02:52.6]} 10... b6 {[%clk 0:02:49.5]} 11.
Nc3 {[%clk 0:02:45.4]} 11... Bd6 {[%clk 0:02:33]} 12. Rd2 {[%clk 0:02:41.1]}
12... Ne7 {[%clk 0:02:31.6]} 13. Rad1 {[%clk 0:02:40.6]} 13... O-O-O {[%clk
0:02:29.8]} 14. h3 {[%clk 0:02:09.7]} 14... Be5 {[%clk 0:02:17.5]} 15. f4 {[%clk
0:02:00.4]} 15... Bxc3 {[%clk 0:02:13.9]} 16. bxc3 {[%clk 0:02:00.1]} 16... f5
{[%clk 0:02:13.8]} 17. Rxd8+ {[%clk 0:01:12]} 17... Rxd8 {[%clk 0:02:10.8]} 18.
Rxd8+ {[%clk 0:01:12.9]} 18... Kxd8 {[%clk 0:02:10.7]} 19. e5 {[%clk 0:01:05.5]}
19... a5 {[%clk 0:02:03.5]} 20. Kf2 {[%clk 0:01:01.5]} 20... Kd7 {[%clk
0:01:58.9]} 21. Ke2 {[%clk 0:00:52.4]} 21... Kc6 {[%clk 0:01:58]} 22. Nc1 {[%clk
0:00:46.4]} 22... Kb5 {[%clk 0:01:52.8]} 23. Kd2 {[%clk 0:00:36.8]} 23... Ka4
{[%clk 0:01:39.1]} 24. Kd3 {[%clk 0:00:36.5]} 24... Nd5 {[%clk 0:01:27.3]} 25.
Bd2 {[%clk 0:00:36.1]} 25... b5 {[%clk 0:01:25]} 26. c4 {[%clk 0:00:20.8]} 26...
Nb4+ {[%clk 0:01:07.5]} 27. Kc3 {[%clk 0:00:19]} 27... Bxc4 {[%clk 0:01:03.7]}
28. Kb2 {[%clk 0:00:18.7]} 28... Nd5 {[%clk 0:00:55.2]} 29. g4 {[%clk
0:00:17.2]} 29... g6 {[%clk 0:00:49.6]} 30. Nb3 {[%clk 0:00:14.7]} 30... b4
{[%clk 0:00:41.6]} 31. Nxc5+ {[%clk 0:00:14.6]} 31... Kb5 {[%clk 0:00:41.5]} 32.
Nd7 {[%clk 0:00:14.3]} 32... a4 {[%clk 0:00:40.7]} 33. e6 {[%clk 0:00:13.1]}
33... a3+ {[%clk 0:00:38.8]} 34. Kb1 {[%clk 0:00:12.9]} 34... Ne7 {[%clk
0:00:36.4]} 35. Nf6 {[%clk 0:00:11.7]} 35... h6 {[%clk 0:00:28.5]} 36. g5 {[%clk
0:00:08.7]} 36... h5 {[%clk 0:00:23.8]} 37. h4 {[%clk 0:00:07.5]} 37... Bxe6
{[%clk 0:00:23.6]} 38. Be3 {[%clk 0:00:07]} 38... c5 {[%clk 0:00:22.7]} 39. Ne8
{[%clk 0:00:06.4]} 39... Nd5 {[%clk 0:00:19.6]} 40. Bc1 {[%clk 0:00:06.5]} 40...
Kc4 {[%clk 0:00:19.5]} 41. Nd6+ {[%clk 0:00:06.2]} 41... Kd4 {[%clk 0:00:16.5]}
42. Nb5+ {[%clk 0:00:03.6]} 42... Ke4 {[%clk 0:00:16]} 43. Nd6+ {[%clk
0:00:03.4]} 43... Kf3 {[%clk 0:00:15.9]} 44. Nb7 {[%clk 0:00:02.5]} 44... Nc3+
{[%clk 0:00:14.8]} 45. Ka1 {[%clk 0:00:02.1]} 45... Nxa2 {[%clk 0:00:15.1]} 46.
Nxc5 {[%clk 0:00:01.8]} 46... Bc4 {[%clk 0:00:13.9]} 47. Bd2 {[%clk 0:00:01.7]}
47... Nc3 {[%clk 0:00:13.8]} 48. Bxc3 {[%clk 0:00:01.4]} 48... bxc3 {[%clk
0:00:13.6]} 49. Na4 {[%clk 0:00:02.1]} 49... Kxf4 {[%clk 0:00:13.6]} 50. Nxc3
{[%clk 0:00:02.7]} 50... Kg4 {[%clk 0:00:14]} 51. Nb1 {[%clk 0:00:01.5]} 51...
Kxh4 {[%clk 0:00:14]} 52. Nxa3 {[%clk 0:00:02.2]} 52... Bd5 {[%clk 0:00:13.5]}
53. c4 {[%clk 0:00:02.7]} 53... Bc6 {[%clk 0:00:13.6]} 54. Kb2 {[%clk 0:00:03]}
54... f4 {[%clk 0:00:13.6]} 55. Kc3 {[%clk 0:00:03.9]} 55... f3 {[%clk
0:00:13.9]} 56. Nc2 {[%clk 0:00:04.6]} 56... f2 {[%clk 0:00:13.3]} 57. Ne3
{[%clk 0:00:05.3]} 57... Kxg5 {[%clk 0:00:12.7]} 58. Kd2 {[%clk 0:00:05.4]}
58... Kf4 {[%clk 0:00:13.1]} 59. Ke2 {[%clk 0:00:06]} 59... h4 {[%clk
0:00:11.5]} 60. Kxf2 {[%clk 0:00:06.2]} 60... g5 {[%clk 0:00:11.3]} 61. c5
{[%clk 0:00:04.5]} 61... g4 {[%clk 0:00:11.8]} 62. Kg1 {[%clk 0:00:03]} 62...
Kxe3 {[%clk 0:00:10.4]} 0-1

[Event "Early-Titled-Tuesday-Blitz-March-12-2024"]
[Site "Chess.com"]
[Date "2024.03.12"]
[Round "5"]
[White "javierfreilemartin"]
[Black "Kotofeyca"]
[Result "0-1"]
[WhiteElo "2251"]
[BlackElo "2442"]
[TimeControl "180+1"]
[EndTime "8:56:22 PDT"]
[Termination "Kotofeyca won on time"]

1. c4 {[%clk 0:03:00.9]} 1... c6 {[%clk 0:02:59.7]} 2. d4 {[%clk 0:02:59.7]}
2... d5 {[%clk 0:03:00.6]} 3. Nf3 {[%clk 0:02:59.2]} 3... Nf6 {[%clk 0:03:00.6]}
4. g3 {[%clk 0:02:58.9]} 4... Bf5 {[%clk 0:02:59.9]} 5. Nbd2 {[%clk 0:02:56.8]}
5... e6 {[%clk 0:03:00]} 6. Bg2 {[%clk 0:02:56.8]} 6... Nbd7 {[%clk 0:02:59.7]}
7. O-O {[%clk 0:02:56.4]} 7... Bd6 {[%clk 0:02:59.8]} 8. Qb3 {[%clk 0:02:55.4]}
8... Rb8 {[%clk 0:02:57.3]} 9. a4 {[%clk 0:02:50.2]} 9... O-O {[%clk 0:02:55.6]}
10. a5 {[%clk 0:02:50]} 10... Ne4 {[%clk 0:02:06.8]} 11. Nxe4 {[%clk 0:02:47.1]}
11... Bxe4 {[%clk 0:02:06.5]} 12. Rd1 {[%clk 0:02:31.4]} 12... c5 {[%clk
0:01:51.1]} 13. Be3 {[%clk 0:02:24.5]} 13... cxd4 {[%clk 0:01:39]} 14. Bxd4
{[%clk 0:02:09.1]} 14... Bc5 {[%clk 0:01:25.2]} 15. Ne5 {[%clk 0:01:10]} 15...
Bxd4 {[%clk 0:01:09.3]} 16. Nxd7 {[%clk 0:01:07.8]} 16... Qxd7 {[%clk
0:00:23.1]} 17. Bxe4 {[%clk 0:01:01.3]} 17... dxe4 {[%clk 0:00:21.2]} 18. e3
{[%clk 0:01:00.7]} 18... e5 {[%clk 0:00:20.9]} 19. c5 {[%clk 0:00:16.3]} 19...
Rfd8 {[%clk 0:00:19.5]} 20. Qc2 {[%clk 0:00:14.5]} 20... Qc6 {[%clk 0:00:19.1]}
21. exd4 {[%clk 0:00:13.4]} 21... exd4 {[%clk 0:00:20]} 22. b4 {[%clk
0:00:12.8]} 22... d3 {[%clk 0:00:19.6]} 23. Qc4 {[%clk 0:00:12.8]} 23... a6
{[%clk 0:00:19.9]} 24. Rab1 {[%clk 0:00:12.3]} 24... Rd7 {[%clk 0:00:18.1]} 25.
b5 {[%clk 0:00:12.5]} 25... axb5 {[%clk 0:00:18.9]} 26. Rxb5 {[%clk 0:00:12.7]}
26... Rbd8 {[%clk 0:00:18.6]} 27. Rb6 {[%clk 0:00:12.8]} 27... Qd5 {[%clk
0:00:18]} 28. Qxd5 {[%clk 0:00:11]} 28... Rxd5 {[%clk 0:00:18.9]} 29. Rxb7
{[%clk 0:00:11.3]} 29... Rxc5 {[%clk 0:00:19.2]} 30. a6 {[%clk 0:00:11.8]} 30...
Ra5 {[%clk 0:00:19]} 31. Re7 {[%clk 0:00:11.5]} 31... f5 {[%clk 0:00:17.6]} 32.
Rb1 {[%clk 0:00:10.6]} 32... Rxa6 {[%clk 0:00:16.6]} 33. Rbb7 {[%clk 0:00:10.4]}
33... Rg6 {[%clk 0:00:17.1]} 34. Kf1 {[%clk 0:00:09]} 34... d2 {[%clk
0:00:15.6]} 35. Rbd7 {[%clk 0:00:08.9]} 35... Rd6 {[%clk 0:00:15.4]} 36. Re8+
{[%clk 0:00:08.2]} 36... Rxe8 {[%clk 0:00:14.7]} 37. Rxd6 {[%clk 0:00:08.7]}
37... Ra8 {[%clk 0:00:13.6]} 38. Rxd2 {[%clk 0:00:08.5]} 38... Kf7 {[%clk
0:00:13.9]} 39. Kg2 {[%clk 0:00:08.5]} 39... Kf6 {[%clk 0:00:14.8]} 40. Rd6+
{[%clk 0:00:08.1]} 40... Ke5 {[%clk 0:00:14.5]} 41. Rd7 {[%clk 0:00:08.5]} 41...
Rg8 {[%clk 0:00:14.9]} 42. Kf1 {[%clk 0:00:07.4]} 42... Ke6 {[%clk 0:00:15.8]}
43. Rd1 {[%clk 0:00:05.4]} 43... h5 {[%clk 0:00:16.3]} 44. Ke2 {[%clk
0:00:06.1]} 44... h4 {[%clk 0:00:16.3]} 45. h3 {[%clk 0:00:06.5]} 45... hxg3
{[%clk 0:00:15.9]} 46. fxg3 {[%clk 0:00:06.6]} 46... Ra8 {[%clk 0:00:15.6]} 47.
Ke3 {[%clk 0:00:06.3]} 47... g5 {[%clk 0:00:14.4]} 48. h4 {[%clk 0:00:06.5]}
48... Ra3+ {[%clk 0:00:14.6]} 49. Kd4 {[%clk 0:00:06.1]} 49... gxh4 {[%clk
0:00:13.6]} 50. gxh4 {[%clk 0:00:06.5]} 50... Rh3 {[%clk 0:00:13.2]} 51. Ra1
{[%clk 0:00:05.8]} 51... Rxh4 {[%clk 0:00:13]} 52. Ra6+ {[%clk 0:00:06.4]} 52...
Kf7 {[%clk 0:00:13.4]} 53. Ke5 {[%clk 0:00:06.6]} 53... Rh5 {[%clk 0:00:12.2]}
54. Rf6+ {[%clk 0:00:04.3]} 54... Kg7 {[%clk 0:00:12.3]} 55. Rc6 {[%clk
0:00:03.8]} 55... Rg5 {[%clk 0:00:12.3]} 56. Kf4 {[%clk 0:00:03.3]} 56... Rh5
{[%clk 0:00:11.8]} 57. Rc7+ {[%clk 0:00:03]} 57... Kf6 {[%clk 0:00:11]} 58. Rc6+
{[%clk 0:00:03.5]} 58... Ke7 {[%clk 0:00:11.5]} 59. Rc5 {[%clk 0:00:03.2]} 59...
Kd6 {[%clk 0:00:11.7]} 60. Ra5 {[%clk 0:00:01.8]} 60... Rh3 {[%clk 0:00:09.8]}
61. Kxf5 {[%clk 0:00:01.4]} 61... Rh5+ {[%clk 0:00:09]} 0-1